bitfinex-derivatives/quotes_ETHF0:USTF0_20240904
["timestamp","ask_amount","ask_price","bid_price","bid_amount"]
[1725465718266,0.40657,2459.5,2459.3,8.7187001]
[1725465718454,0.40654,2459.7,2459.4,3.21657]
[1725465718658,0.6236,2459.9,2459.4,2.81]
[1725465719162,0.40654,2459.7,2459.4,2.81]
[1725465719368,0.6236,2459.9,2459.4,2.81]
[1725465719562,0.40654,2459.7,2459.4,2.81]
[1725465719867,0.40653,2459.8,2459.4,3.21658]
[1725465720057,0.6236,2459.9,2459.5,0.40655]
[1725465720258,0.40656,2459.6,2459.2,4.23406815]
[1725465720458,1.01629,2459.8,2459.2,3.21386815]
[1725465720660,1.01633,2459.7,2459.2,3.21386815]
[1725465720860,0.40657,2459.5,2459.2,3.21386815]
[1725465721057,0.40655,2459.6,2459.2,3.62047815]
[1725465721262,0.6236,2459.9,2459.3,0.40659]
[1725465721568,0.40658,2459.5,2459.2,3.21386815]
[1725465721772,0.40654,2459.7,2459.2,3.21386815]
[1725465721976,0.40654,2459.7,2459.4,0.40657]
[1725465722266,0.2,2460.0,2459.5,3.2078]
[1725465722460,0.60649,2460.0,2459.6,0.617]
[1725465722656,0.60649,2460.0,2459.7,0.40652]
[1725465722657,0.2,2460.0,2459.7,0.40652]
[1725465722857,0.60648,2460.0,2459.6,9.48123049]
[1725465723171,0.40652,2459.8,2459.6,8.45769049]
[1725465723374,0.40653,2459.7,2459.6,8.45769049]
[1725465724267,0.4065,2459.9,2459.6,8.86423049]
[1725465724465,0.40651,2459.8,2459.7,0.5974]
[1725465725069,0.40653,2459.7,2459.6,8.45769049]
[1725465725268,1.01629,2459.8,2459.3,4.0504]
[1725465725568,1.01633,2459.7,2459.2,0.00606815]
[1725465725762,0.40657,2459.5,2459.2,0.41267815]
[1725465725961,0.40654,2459.7,2459.3,3.2078]
[1725465726173,0.40654,2459.7,2459.4,1.03016]
[1725465726370,1.01629,2459.8,2459.4,8.5376313]
[1725465726561,0.5998,2459.9,2459.4,8.5376313]
[1725465726562,0.40656,2459.5,2459.4,8.5376313]
[1725465726766,1.42297,2459.5,2459.4,8.5376313]
[1725465726971,1.42308,2459.3,2459.2,0.00606815]
[1725465727166,0.40659,2459.3,2459.2,0.00606815]
[1725465728175,4.47299,2459.3,2459.2,0.00606815]
[1725465728374,1.42308,2459.3,2459.2,0.00606815]
[1725465728584,1.61359,2459.4,2459.2,0.00606815]
[1725465728880,0.40657,2459.5,2459.2,0.00606815]
[1725465729078,3.8572,2459.8,2459.3,2.11]
[1725465729280,0.40655,2459.6,2459.3,12.15723574]
[1725465729479,4.26372,2459.8,2459.3,14.95844574]
[1725465729672,3.61432,2459.8,2459.5,0.40656]
[1725465729986,3.61432,2459.8,2459.3,9.64064574]
[1725465730382,3.61432,2459.8,2459.4,0.40658]
[1725465730580,0.40655,2459.6,2459.3,10.04723574]
[1725465730770,0.40655,2459.6,2459.3,1.63659]
[1725465730974,0.40655,2459.6,2459.3,1.23]
[1725465731278,3.2078,2459.8,2459.3,1.23]
[1725465731582,0.40654,2459.7,2459.3,1.63659]
[1725465731781,3.61433,2459.8,2459.4,8.77556492]
[1725465731981,0.40654,2459.7,2459.4,8.36899492]
[1725465732181,0.40654,2459.7,2459.4,8.77556492]
[1725465732379,0.40654,2459.7,2459.4,8.36899492]
[1725465732679,0.40654,2459.7,2459.4,8.77557492]
[1725465732880,0.40654,2459.7,2459.4,8.36899492]
[1725465733079,0.40654,2459.7,2459.4,8.77556492]
[1725465733279,3.2078,2459.8,2459.4,8.36899492]
[1725465733475,0.40656,2459.5,2459.4,8.36899492]
[1725465733681,0.40656,2459.5,2459.2,0.00606815]
[1725465733682,0.40659,2459.3,2459.2,0.00606815]
[1725465733984,0.40655,2459.6,2459.2,6.88246815]
[1725465734182,0.00609917,2460.2,2459.5,6.0178]
[1725465734486,0.00609917,2460.2,2459.7,0.40652]
[1725465734675,0.60648,2460.0,2459.6,9.43410821]
[1725465734879,0.60648,2460.0,2459.6,9.02756821]
[1725465735184,0.60649,2460.0,2459.6,9.02756821]
[1725465735383,0.2,2460.0,2459.6,9.02756821]
[1725465735582,0.40651,2459.9,2459.6,9.02756821]
[1725465735773,3.81429,2460.0,2459.6,9.02756821]
[1725465735975,3.4078,2460.0,2459.6,9.02756821]
[1725465736578,3.4078,2460.0,2459.6,9.43410821]
[1725465736884,0.2,2460.0,2459.6,9.43409821]
[1725465737087,0.2,2460.0,2459.7,0.40652]
[1725465737581,0.2,2460.0,2459.8,0.6435]
[1725465738483,0.60649,2460.0,2459.8,0.6435]
[1725465738787,0.2,2460.0,2459.8,0.6435]
[1725465739682,0.2,2460.0,2459.8,4.7091]
[1725465739885,0.2,2460.0,2459.8,7.9169]
[1725465740085,0.00609917,2460.2,2459.9,8.63060682]
[1725465740288,0.00609917,2460.2,2460.0,0.40647]
[1725465740485,0.00609917,2460.2,2460.1,0.40646]
[1725465740681,3.21126261,2460.7,2460.1,16.51010682]
[1725465740880,3.61762261,2460.7,2460.3,0.40642]
[1725465741075,3.21126261,2460.7,2460.2,0.6077]
[1725465741379,3.21126261,2460.7,2460.5,0.40639]
[1725465741578,3.21126261,2460.7,2460.4,8.47474109]
[1725465741579,0.40638,2460.6,2460.3,9.51366109]
[1725465741789,3.21126261,2460.7,2460.3,0.6325]
[1725465741790,3.21736178,2460.7,2460.3,0.6325]
[1725465742082,1.2605,2460.6,2460.3,0.6325]
[1725465742580,0.40641,2460.4,2460.3,0.6325]
[1725465742987,4.22335,2461.6,2460.6,1.01596]
[1725465743182,6.805,2462.9,2460.3,9.54307578]
[1725465743183,0.40618,2461.8,2461.2,6.0178]
[1725465743484,1.01536,2462.1,2461.3,9.75567578]
[1725465743485,3.2078,2461.9,2461.3,9.75567578]
[1725465743887,0.40625,2461.4,2461.3,9.75567578]
[1725465744093,4.43007524,2461.9,2461.3,9.75567578]
[1725465744094,0.00609917,2461.6,2461.3,13.81887578]
[1725465744288,0.00609917,2461.6,2461.3,9.75567578]
[1725465744585,0.00609917,2461.6,2461.3,10.16192578]
[1725465744783,0.41231917,2461.6,2461.3,9.75567578]
[1725465744986,0.00609917,2461.6,2461.3,10.16192578]
[1725465745190,0.41231917,2461.6,2461.3,10.16192578]
[1725465745398,0.00609917,2461.6,2461.3,8.50337578]
[1725465745585,0.40627,2461.3,2461.1,0.00609917]
[1725465745788,0.00609917,2461.6,2461.3,8.59395]
[1725465745986,0.40625,2461.4,2461.3,8.59395]
[1725465746181,0.40626,2461.4,2461.1,2.81609917]
[1725465746392,1.02166917,2461.6,2461.1,2.81609917]
[1725465746590,0.40626,2461.3,2461.2,9.22795]
[1725465746789,1.02166917,2461.6,2461.2,9.22795]
[1725465746992,0.40626,2461.3,2461.2,9.22795]
[1725465747188,0.40628,2461.2,2461.1,2.81609917]
[1725465747592,0.40625,2461.4,2461.2,0.40628]
[1725465747997,0.40628,2461.2,2461.1,2.81609917]
[1725465748299,1.02166917,2461.6,2461.1,2.81609917]
[1725465748598,0.00609917,2461.6,2461.1,2.81609917]
[1725465748786,0.00609917,2461.6,2461.2,0.40628]
[1725465749094,0.40624,2461.5,2461.3,0.40626]
[1725465749300,4.62968,2461.4,2461.3,8.73033901]
[1725465749490,0.40628,2461.2,2461.1,0.00609917]
[1725465749990,0.40628,2461.2,2461.1,2.11609917]
[1725465750393,5.48519,2461.2,2461.1,0.00609917]
[1725465752101,0.40628,2461.2,2461.1,0.00609917]
[1725465752901,0.40607,2462.5,2462.3,0.40609]
[1725465753194,3.61376,2463.2,2462.8,0.40602]
[1725465753404,3.2078,2463.2,2463.1,2.81]
[1725465753793,7.2678,2463.2,2462.5,3.475]
[1725465754101,3.2078,2463.2,2462.9,0.41208917]
[1725465754303,3.2078,2463.2,2462.9,0.00609917]
[1725465754896,0.40598,2463.0,2462.9,0.00609917]
[1725465755092,3.2078,2463.2,2462.9,0.00609917]
[1725465755093,0.40597,2463.1,2462.9,0.00609917]
[1725465755293,0.40598,2463.0,2462.9,0.00609917]
[1725465755700,3.2078,2463.2,2462.9,4.06609917]
[1725465755894,3.2078,2463.2,2462.9,9.06952712]
[1725465756195,3.2078,2463.2,2462.9,8.66353712]
[1725465756502,3.2078,2463.2,2462.9,0.00609917]
[1725465756503,1.42095,2463.0,2462.9,0.00609917]
[1725465756897,0.40598,2463.0,2462.9,0.00609917]
[1725465757099,3.2078,2463.2,2462.9,2.81609917]
[1725465757298,0.40598,2463.1,2462.9,2.81609917]
[1725465757599,3.2078,2463.2,2462.9,2.81609917]
[1725465757797,0.40598,2463.0,2462.9,2.81609917]
[1725465758195,2.81,2463.0,2461.8,0.20092471]
[1725465758398,1.01554,2461.7,2461.2,0.40627]
[1725465758603,3.2078,2461.6,2461.1,0.40629]
[1725465758903,0.40627,2461.3,2461.0,0.4063]
[1725465759096,3.2078,2461.6,2460.9,0.20738412]
[1725465759291,0.4063,2461.1,2461.0,8.60036723]
[1725465759494,1.01563,2461.4,2461.0,8.60036723]
[1725465759709,1.42205,2461.1,2461.0,8.60036723]
[1725465759901,0.4063,2461.1,2461.0,0.00609917]
[1725465760302,5.48525,2461.1,2461.0,0.00609917]
[1725465760499,4.4695,2461.1,2461.0,0.00609917]
[1725465760707,0.4063,2461.1,2461.0,8.49948498]
[1725465761300,3.2078,2461.4,2461.0,8.49948498]
[1725465761500,0.00609917,2461.5,2461.0,15.37268498]
[1725465761708,0.41233917,2461.5,2461.0,11.30948498]
[1725465761906,0.40625,2461.4,2461.2,0.40627]
[1725465762102,0.40625,2461.4,2461.2,0.40628]
[1725465762299,0.40625,2461.4,2461.3,8.60642588]
[1725465763006,0.40628,2461.3,2461.1,8.30201655]
[1725465763202,0.40628,2461.2,2461.1,8.30201655]
[1725465763502,3.07911,2462.0,2461.9,18.25843083]
[1725465763703,12.28691,2462.0,2461.9,18.25843083]
[1725465763903,16.34851,2462.0,2461.9,17.43563083]
[1725465764099,16.34851,2462.0,2461.9,16.59103083]
[1725465764302,7.14071,2462.0,2461.9,15.57090083]
[1725465764704,13.14071,2462.0,2461.9,15.57090083]
[1725465765205,16.34851,2462.0,2461.9,15.57090083]
[1725465765596,16.34851,2462.0,2461.9,13.98229083]
[1725465765903,18.57949023,2462.0,2461.9,6.67429154]
[1725465766105,18.57949023,2462.0,2461.9,4.54699154]
[1725465766604,18.57949023,2462.0,2461.9,0.80487154]
[1725465767195,18.57949023,2462.0,2461.9,1.54e-06]
[1725465767707,0.4063,2461.1,2461.0,0.00609917]
[1725465768099,5.48525,2461.1,2461.0,0.00609917]
[1725465770007,6.501,2461.1,2461.0,0.00609917]
[1725465770401,12.501,2461.1,2461.0,0.00609917]
[1725465774317,6.501,2461.1,2461.0,0.00609917]
[1725465774806,9.7088,2461.1,2461.0,0.00609917]
[1725465775207,5.48525,2461.1,2461.0,0.00609917]
[1725465775703,1.01543,2461.9,2461.0,4.22818861]
[1725465775909,0.40621,2461.6,2461.5,1.01428944]
[1725465776111,0.40621,2461.6,2461.1,0.6175]
[1725465776112,3.2078,2461.7,2461.0,9.4829316]
[1725465776313,0.4063,2461.1,2461.0,1.02038861]
[1725465776611,1.42205,2461.1,2461.0,0.00609917]
[1725465776808,5.48525,2461.1,2461.0,0.00609917]
[1725465777313,4.4695,2461.1,2461.0,0.00609917]
[1725465777707,4.0632,2461.1,2461.0,0.00609917]
[1725465777904,1.01554,2461.6,2461.0,1.02038861]
[1725465778401,4.22334,2461.6,2461.1,1.01428944]
[1725465778601,1.01552,2461.7,2461.0,1.02038861]
[1725465778810,0.40627,2461.3,2461.1,1.01428944]
[1725465779206,0.40628,2461.2,2461.1,1.01428944]
[1725465779609,0.40628,2461.2,2461.0,0.00609917]
[1725465779610,0.4063,2461.1,2461.0,0.00609917]
[1725465780014,10.4695,2461.1,2461.0,0.00609917]
[1725465780613,11.48525,2461.1,2461.0,0.00609917]
[1725465781520,12.501,2461.1,2461.0,9.17e-06]
[1725465782515,0.40646,2460.1,2459.9,3.8234]
[1725465782715,0.40646,2460.1,2460.0,1.66828944]
[1725465783024,3.2078,2460.5,2460.0,1.66828944]
[1725465783323,0.40627,2461.3,2460.4,3.82428944]
[1725465783521,4.22334,2461.7,2461.1,1.01428944]
[1725465783522,0.40628,2461.2,2461.1,1.01428944]
[1725465784016,0.00609917,2461.4,2461.1,1.01428944]
[1725465784218,0.00609917,2461.4,2461.3,1.01428944]
[1725465784429,0.40612,2462.2,2461.3,1.01428944]
[1725465784630,3.2078,2462.3,2462.1,1.01428944]
[1725465784923,3.2078,2462.9,2462.2,4.22208944]
[1725465785124,2.81,2463.6,2462.2,4.22208944]
[1725465785125,3.2078,2463.1,2462.8,1.01428944]
[1725465785320,3.2078,2463.1,2462.5,3.2078]
[1725465785321,3.2078,2463.2,2462.9,1.01428944]
[1725465785520,3.2078,2463.5,2462.9,1.01428944]
[1725465785735,3.2078,2463.5,2463.1,1.01428944]
[1725465785736,3.61371,2463.5,2463.1,1.01428944]
[1725465786025,0.00609917,2463.4,2463.0,1.01428944]
[1725465786219,3.2078,2463.2,2463.1,9.17e-06]
[1725465786427,0.00609917,2463.4,2463.1,9.17e-06]
[1725465786616,0.00609917,2463.4,2463.3,1.01428944]
[1725465787119,0.40595,2463.2,2463.1,9.17e-06]
[1725465787625,13.67375,2463.2,2463.1,9.17e-06]
[1725465788327,0.40606,2462.6,2462.2,1.3155]
[1725465788526,3.2078,2463.1,2462.6,1.01428944]
[1725465788727,3.2078,2462.8,2462.5,1.01428944]
[1725465789022,3.2078,2463.0,2462.3,1.01428944]
[1725465789228,3.2078,2462.7,2462.3,1.01428944]
[1725465789432,3.2078,2462.8,2462.6,1.01428944]
[1725465789728,3.2078,2462.8,2462.4,1.01428944]
[1725465789919,3.2078,2462.8,2462.6,1.01428944]
[1725465790115,3.2078,2462.8,2462.7,0.6347]
[1725465790319,3.2078,2463.3,2462.7,1.64898944]
[1725465790524,3.2078,2463.3,2463.0,1.01428944]
[1725465790722,3.2078,2463.3,2462.7,0.6347]
[1725465790723,0.40595,2463.2,2462.7,0.6347]
[1725465791028,0.40597,2463.1,2462.9,1.01428944]
[1725465791230,0.40601,2462.9,2462.7,0.6347]
[1725465791528,0.40606,2462.6,2462.3,0.00609917]
[1725465791723,0.40606,2462.6,2462.4,1.01428944]
[1725465791919,0.00609917,2463.4,2462.5,1.01428944]
[1725465792230,3.2078,2463.0,2462.6,1.01428944]
[1725465792620,3.2078,2463.3,2462.6,1.01428944]
[1725465792924,3.2078,2463.3,2462.3,0.64079917]
[1725465793130,3.2078,2463.3,2462.9,1.01428944]
[1725465793325,1.01427,2464.7,2463.2,3.2078]
[1725465793526,1.01427,2464.7,2463.0,2.92]
[1725465793527,0.40572,2464.6,2463.9,3.2078]
[1725465793727,0.40572,2464.6,2463.3,0.6459]
[1725465793728,0.40573,2464.6,2463.5,3.2078]
[1725465793919,0.46024527,2464.9,2463.8,3.2078]
[1725465794125,0.40577,2464.3,2463.9,0.659]
[1725465794327,0.00608667,2464.3,2463.9,0.66508667]
[1725465794828,0.40582,2464.0,2463.9,0.66508667]
[1725465795032,0.40582,2464.0,2463.9,0.00608667]
[1725465795229,3.2078,2464.2,2463.9,0.00608667]
[1725465795526,4.0584,2464.1,2463.9,0.00608667]
[1725465795726,0.00608667,2464.3,2463.9,0.00608667]
[1725465796246,10.1862,2464.2,2463.9,0.00608667]
[1725465796423,1.42037,2464.0,2463.9,6.67e-06]
[1725465796731,4.0584,2464.1,2463.1,0.659]
[1725465797034,4.0584,2464.1,2462.8,0.6624]
[1725465797035,0.406,2462.9,2462.8,0.6624]
[1725465797533,0.4059,2463.6,2462.8,13.9302]
[1725465797735,0.40589,2463.6,2462.9,0.40599]
[1725465798029,0.40591,2463.5,2462.8,4.27621]
[1725465798226,3.61371,2463.5,2462.8,4.27621]
[1725465798430,3.2078,2463.6,2462.8,4.27621]
[1725465798628,3.2078,2463.6,2462.8,0.6624]
[1725465798947,1.01467,2463.8,2462.8,0.6624]
[1725465799132,3.2078,2463.5,2462.8,0.6624]
[1725465799727,3.2078,2463.5,2462.6,0.62128667]
[1725465799728,0.406,2462.9,2462.6,0.62128667]
[1725465799936,0.40601,2462.9,2462.6,0.62128667]
[1725465800124,0.00608667,2463.0,2462.6,0.62128667]
[1725465800125,0.40603,2462.7,2462.6,0.62128667]
[1725465800324,0.00608667,2463.0,2462.6,0.00608667]
[1725465800536,0.40601,2462.9,2462.6,0.00608667]
[1725465800733,4.0608,2462.9,2462.6,0.00608667]
[1725465800925,4.62892,2462.7,2462.6,6.67e-06]
[1725465801325,14.68972,2462.7,2462.6,6.67e-06]
[1725465803324,13.67463,2462.7,2462.6,6.67e-06]
[1725465803526,14.68972,2462.7,2462.6,6.67e-06]
[1725465803932,15.70481,2462.7,2462.6,6.67e-06]
[1725465804436,0.40621,2461.6,2461.5,0.6971]
[1725465804631,1.01514,2462.6,2461.5,0.6971]
[1725465804632,0.4062,2461.7,2461.5,0.6971]
[1725465804830,0.40617,2461.9,2461.5,0.6971]
[1725465805227,3.61389,2462.4,2461.7,3.61398]
[1725465805429,3.61389,2462.4,2461.5,0.6971]
[1725465805430,0.40604,2462.7,2462.1,0.40613]
[1725465805636,4.22274,2463.1,2462.2,0.66738667]
[1725465805637,3.21388667,2463.0,2462.2,0.66738667]
[1725465805838,3.2078,2462.7,2462.2,0.66738667]
[1725465806025,0.00608667,2463.0,2462.2,0.66738667]
[1725465806026,0.40607,2462.5,2462.2,0.66738667]
[1725465806738,3.2078,2462.7,2462.2,0.66738667]
[1725465807036,0.4061,2462.3,2462.2,0.66738667]
[1725465807231,5.48296,2462.3,2462.2,0.00608667]
[1725465807431,11.48296,2462.3,2462.2,0.00608667]
[1725465807732,12.49822,2462.3,2462.2,6.67e-06]
[1725465808434,12.57372,2462.3,2462.2,6.67e-06]
[1725465808632,13.22302,2462.3,2462.2,6.67e-06]
[1725465808935,13.22302,2462.3,2461.2,0.6139]
[1725465808936,0.40632,2461.0,2460.8,3.8642]
[1725465809136,0.40632,2461.0,2460.8,0.6564]
[1725465809331,0.40633,2460.9,2460.8,0.6564]
[1725465809835,0.40632,2461.0,2460.8,0.6564]
[1725465810037,0.00608667,2461.1,2460.8,1.06274]
[1725465810232,3.2078,2461.5,2460.8,3.8642]
[1725465810233,0.40624,2461.5,2460.8,3.8642]
[1725465810434,3.2078,2461.8,2461.1,0.4063]
[1725465810635,1.01546,2461.9,2461.1,0.40628]
[1725465810940,0.40623,2461.6,2461.1,0.40628]
[1725465811139,3.2078,2462.0,2461.1,3.2078]
[1725465811439,3.61388,2462.4,2462.0,0.40614]
[1725465811638,1.01505,2462.8,2462.1,1.05533]
[1725465811847,0.00608667,2462.4,2462.2,0.40611]
[1725465812032,0.00608667,2462.4,2462.2,0.6496]
[1725465812434,0.41217667,2462.4,2462.2,0.6496]
[1725465812637,0.00608667,2462.4,2462.2,0.6496]
[1725465812834,0.4061,2462.3,2462.2,0.6496]
[1725465813335,4.4677,2462.3,2462.2,0.6496]
[1725465813537,0.40612,2462.2,2462.1,0.6492]
[1725465814448,0.40613,2462.1,2462.0,0.00608667]
[1725465814739,11.48307,2462.1,2462.0,0.00608667]
[1725465815546,12.49841,2462.1,2462.0,0.00608667]
[1725465815841,11.48307,2462.1,2462.0,0.00608667]
[1725465816032,4.46773,2462.1,2462.0,0.00608667]
[1725465816228,10.46773,2462.1,2462.0,0.00608667]
[1725465816428,5.48307,2462.1,2462.0,0.00608667]
[1725465816637,11.48307,2462.1,2462.0,0.00608667]
[1725465816935,11.07694,2462.1,2461.2,3.2078]
[1725465817140,0.40624,2461.5,2461.2,3.2078]
[1725465817340,0.40626,2461.3,2461.2,3.2078]
[1725465817545,4.0632,2461.4,2460.8,1.9314]
[1725465817733,0.40633,2460.9,2460.8,0.6658]
[1725465818036,0.4064,2460.5,2460.1,3.61425]
[1725465818333,0.4064,2460.5,2460.2,0.6382]
[1725465818536,0.40642,2460.4,2460.2,0.6382]
[1725465818844,3.2078,2460.9,2460.3,0.40643]
[1725465819036,1.02185667,2461.1,2460.4,0.4064]
[1725465819037,0.40636,2460.8,2460.4,0.4064]
[1725465819236,0.40636,2460.8,2460.4,0.40641]
[1725465819438,0.40636,2460.8,2460.2,0.6382]
[1725465819439,1.01582,2461.0,2460.3,0.40642]
[1725465819738,1.01583,2460.9,2460.2,0.6382]
[1725465819939,1.01587,2460.8,2460.2,0.6382]
[1725465820136,0.40641,2460.5,2460.2,0.6382]
[1725465820330,1.01587,2460.8,2460.2,1.04464]
[1725465820642,0.00608667,2461.1,2460.7,3.2078]
[1725465820943,0.00608667,2461.1,2461.0,0.40631]
[1725465821139,0.20055665,2461.7,2460.8,1.3448]
[1725465821332,0.40621,2461.6,2461.2,0.40627]
[1725465821734,0.40621,2461.6,2461.0,3.2078]
[1725465821735,0.40624,2461.5,2461.0,3.2078]
[1725465821928,0.7526,2462.7,2461.0,3.2078]
[1725465821929,3.2078,2463.4,2461.4,3.2078]
[1725465822131,0.40595,2463.3,2462.7,0.40603]
[1725465822344,3.21388667,2463.2,2462.8,0.00608667]
[1725465822533,3.21388667,2463.2,2462.8,3.21388667]
[1725465822534,0.00608667,2463.2,2462.8,3.21388667]
[1725465822936,0.00608667,2463.2,2462.8,0.00608667]
[1725465823636,0.41203667,2463.2,2462.8,0.00608667]
[1725465823930,0.00608667,2463.2,2462.8,0.00608667]
[1725465825140,0.41204667,2463.2,2462.8,0.00608667]
[1725465825537,0.40597,2463.1,2462.8,0.00608667]
[1725465825737,0.00608667,2463.2,2462.8,0.00608667]
[1725465825738,0.406,2462.9,2462.8,0.00608667]
[1725465826137,4.466,2462.9,2462.8,0.00608667]
[1725465826336,4.06,2462.9,2462.8,0.00608667]
[1725465826639,0.00608667,2463.2,2462.8,0.00608667]
[1725465826835,3.2078,2463.0,2462.8,0.00608667]
[1725465827039,0.00608667,2463.2,2462.8,0.00608667]
[1725465827233,3.21388667,2463.2,2462.8,0.00608667]
[1725465827437,0.406,2463.0,2462.8,0.00608667]
[1725465827643,0.40599,2463.0,2462.8,0.00608667]
[1725465827843,3.21388667,2463.2,2462.8,0.00608667]
[1725465828141,0.40598,2463.1,2462.8,0.00608667]
[1725465828344,0.41204667,2463.2,2462.8,0.00608667]
[1725465828544,0.40597,2463.1,2462.8,0.00608667]
[1725465828841,0.41204667,2463.2,2462.8,0.00608667]
[1725465829142,0.00608667,2463.2,2462.8,0.00608667]
[1725465829545,0.40598,2463.1,2462.8,0.00608667]
[1725465829739,3.6138,2462.9,2462.8,0.00608667]
[1725465830244,0.406,2462.9,2462.8,0.00608667]
[1725465830549,0.40599,2463.0,2462.8,0.00608667]
[1725465830742,0.40597,2463.1,2462.8,0.00608667]
[1725465830947,0.00608667,2463.2,2462.8,0.41209667]
[1725465831147,0.00608667,2463.2,2462.9,0.6955]
[1725465831335,3.21388667,2463.2,2463.0,0.6679]
[1725465831642,3.007,2463.6,2463.0,0.6679]
[1725465831841,3.2078,2465.1,2463.7,1.01466]
[1725465832049,1.01403,2465.3,2464.1,6.1278]
[1725465832247,4.22171,2465.6,2464.4,3.2078]
[1725465832440,0.40564,2465.1,2464.5,0.40573]
[1725465832747,0.41175667,2465.0,2464.6,0.00608667]
[1725465833043,0.00608667,2465.0,2464.6,0.41179667]
[1725465833238,4.2217,2465.6,2464.6,0.41179667]
[1725465833239,0.40562,2465.3,2464.8,3.61348]
[1725465833441,3.2078,2465.6,2464.8,3.2078]
[1725465833645,0.40565,2465.0,2464.9,8.61730847]
[1725465835044,0.00608667,2465.2,2464.9,8.61730847]
[1725465835244,0.00608667,2465.2,2464.9,9.02297847]
[1725465835437,0.00608667,2465.2,2464.9,8.61730847]
[1725465835638,0.00608667,2465.2,2464.9,9.02297847]
[1725465835835,0.40567,2465.0,2464.8,3.2078]
[1725465836039,0.00608667,2465.2,2465.0,0.40565]
[1725465836250,0.00608667,2465.2,2465.0,8.74452774]
[1725465836440,0.00608667,2465.2,2464.9,8.74452774]
[1725465836441,0.00608667,2465.2,2464.9,9.15018774]
[1725465836640,0.00608667,2465.2,2464.8,3.2078]
[1725465836641,0.40567,2464.9,2464.8,3.2078]
[1725465837944,0.40567,2464.9,2464.6,0.00608667]
[1725465837945,0.4057,2464.7,2464.6,0.00608667]
[1725465838243,0.40568,2464.9,2464.6,0.00608667]
[1725465838447,0.4057,2464.7,2464.6,0.00608667]
[1725465839046,1.02015667,2465.2,2464.6,0.00608667]
[1725465839047,1.02018667,2465.2,2464.6,0.00608667]
[1725465839246,0.40569,2464.8,2464.6,0.00608667]
[1725465839444,0.4057,2464.7,2464.6,0.00608667]
[1725465839837,0.40568,2464.9,2464.6,10.06368667]
[1725465840043,0.4057,2464.7,2464.6,0.00608667]
[1725465840744,3.21388667,2465.2,2464.6,0.00608667]
[1725465840940,0.40569,2464.8,2464.6,0.00608667]
[1725465841242,0.40569,2464.8,2464.6,0.41179667]
[1725465841547,4.22797667,2465.2,2464.6,0.00608667]
[1725465841548,1.01414,2465.0,2464.6,0.00608667]
[1725465841743,0.40569,2464.8,2464.6,0.41180667]
[1725465841944,0.4057,2464.7,2464.6,0.00608667]
[1725465842344,1.41997,2464.7,2464.6,0.00608667]
[1725465842844,0.4057,2464.7,2464.6,0.00608667]
[1725465843250,1.41997,2464.7,2464.6,0.00608667]
[1725465843547,0.4057,2464.7,2464.6,0.00608667]
[1725465844349,1.41997,2464.7,2464.6,0.00608667]
[1725465844547,0.4057,2464.7,2464.6,0.00608667]
[1725465845550,1.41997,2464.7,2464.6,0.00608667]
[1725465846350,0.4057,2464.7,2464.6,0.00608667]
[1725465846650,0.40566,2465.0,2464.6,10.06368667]
[1725465846850,0.40567,2464.9,2464.6,0.00608667]
[1725465847041,1.01412,2465.1,2464.6,0.00608667]
[1725465847240,0.4057,2464.7,2464.6,0.00608667]
[1725465847640,0.00608667,2465.2,2464.6,0.00608667]
[1725465847839,1.41997,2464.7,2464.6,0.00608667]
[1725465848045,0.4057,2464.7,2464.6,0.00608667]
[1725465848239,0.4057,2464.8,2464.6,0.00608667]
[1725465848455,0.40568,2464.9,2464.7,0.4057]
[1725465848848,0.40568,2464.9,2464.6,0.00608667]
[1725465848849,0.40569,2464.8,2464.6,0.41179667]
[1725465849153,0.4057,2464.7,2464.6,0.00608667]
[1725465850056,5.47757,2464.7,2464.6,0.00608667]
[1725465850348,0.4057,2464.7,2464.6,0.00608667]
[1725465851548,1.01416,2465.0,2464.6,0.41179667]
[1725465851854,0.4057,2464.7,2464.6,0.00608667]
[1725465852254,1.41997,2464.7,2464.6,0.00608667]
[1725465853048,2.43424,2464.7,2464.6,0.00608667]
[1725465853248,6.49184,2464.7,2464.6,0.00608667]
[1725465853752,9.90165036,2464.7,2464.6,6.67e-06]
[1725465853949,4.4633,2464.7,2464.6,6.67e-06]
[1725465854148,5.47757,2464.7,2464.6,6.67e-06]
[1725465854558,0.4057,2464.7,2464.6,6.67e-06]
[1725465854759,3.2078,2465.0,2464.6,6.67e-06]
[1725465855061,1.41997,2464.7,2464.6,6.67e-06]
[1725465855746,5.47757,2464.7,2464.6,6.67e-06]
[1725465856356,8.68537,2464.7,2464.6,6.67e-06]
[1725465856653,9.69964,2464.7,2464.6,6.67e-06]
[1725465858157,9.70084,2464.7,2464.6,6.67e-06]
[1725465858354,6.49304,2464.7,2464.6,6.67e-06]
[1725465858859,1.42117,2464.7,2464.6,6.67e-06]
[1725465859757,0.0012,2464.7,2464.6,6.67e-06]
[1725465859963,0.0012,2464.7,2464.6,0.40572667]
[1725465860156,0.4069,2464.7,2464.6,6.67e-06]
[1725465860659,0.4069,2464.7,2464.6,4.46332667]
[1725465860660,0.0012,2464.7,2464.6,4.46332667]
[1725465860862,0.0012,2464.7,2464.6,6.67e-06]
[1725465860863,0.4069,2464.7,2464.6,6.67e-06]
[1725465861056,0.4069,2464.7,2464.6,4.05760667]
[1725465861459,0.4069,2464.7,2464.6,6.67e-06]
[1725465861754,0.4069,2464.7,2464.6,4.05760667]
[1725465861956,0.4069,2464.7,2464.6,6.67e-06]
[1725465862354,1.42117,2464.7,2464.6,6.67e-06]
[1725465862553,6.49304,2464.7,2464.6,6.67e-06]
[1725465862851,5.64324,2464.7,2464.6,6.67e-06]
[1725465863557,4.62897,2464.7,2464.6,6.67e-06]
[1725465864951,1.42117,2464.7,2464.6,6.67e-06]
[1725465865246,6.18117,2464.7,2464.6,6.67e-06]
[1725465865658,12.18117,2464.7,2464.6,6.67e-06]
[1725465865852,6.18117,2464.7,2464.6,6.67e-06]
[1725465866047,5.1669,2464.7,2464.6,6.67e-06]
[1725465866449,0.0012,2464.7,2464.6,6.67e-06]
[1725465866860,0.4069,2464.7,2464.6,6.67e-06]
[1725465867450,0.4069,2464.7,2463.7,3.4767]